Cogmind - Beta 14 @@@ ROGUE MODE // 2024.11.21 @ 11:00:54 Player: Fangrelle Result: Destroyed by D-53 Grenadier with Mini Grenade Launcher Performance ------------- Evolutions (0) 0 Regions Visited (4) 800 Robots Destroyed (18) 90 Value Destroyed (350) 350 Prototype IDs (23) 460 Alien Tech Used (0) 0 Bonus (300) 300 TOTAL SCORE: 2000 Bonus ------- Aligned with FarCom 300 Cogmind --------- Core Integrity 0/250 Matter 183/300 Energy 50/100 System Corruption 0% Temperature Cool (29) Movement Core (750) Ox14 Location -9/Mines Parts ------- > --- POWER (1) -------- (None) > --- PROPULSION (2) --- (None) > --- UTILITY (2) ------ High-capacity Storage Unit > --- WEAPON (2) ------- Spread Laser > --- INVENTORY (20) --- Nuclear Core Fission Core Light Fission Core Wheel Humpback Superbattery (1500) Signal Interpreter Improved Terrain Scanner Spread Laser Spread Laser Mining Laser Plasma Cutter Plasma Flamer Heavy Explosive Trap Heavy Explosive Trap Heavy Explosive Trap Peak State ------------ > --- POWER ------------ Light Ion Engine > --- PROPULSION ------- Light Treads Light Treads > --- UTILITY ---------- Disposable Heat Sink High-capacity Storage Unit > --- WEAPON ----------- Spread Laser Spread Laser > --- INVENTORY -------- Nuclear Core Fission Core Light Fission Core Wheel Humpback Superbattery Signal Interpreter Improved Terrain Scanner Spread Laser Spread Laser Light Cannon Light Cannon Rocket Launcher Mining Laser Plasma Cutter Plasma Flamer Heavy Explosive Trap Heavy Explosive Trap Heavy Explosive Trap [Rating: 14] Favorites ----------- Power Light Ion Engine Engine Light Ion Engine Propulsion Light Treads Treads Light Treads Leg Aluminum Leg Wheel Wheel Utility High-capacity Storage Unit Device Seismic Detector Storage High-capacity Storage Unit Weapon Spread Laser Energy Gun Spread Laser Ballistic Gun Assault Rifle Ballistic Cannon Light Cannon Launcher Rocket Launcher Build | -11 -10 -10 -10 -9 ------- Run | Yrd Mat Min Exi Min Slots Evolved . | . . . . . Power . | . . . . . Propulsion . | . . . . . Utility . | . . . . . Weapon . | . . . . . Parts Attached 21 | . 12 . 4 5 Power 2 | . 1 . 1 . Engine 2 | . 1 . 1 . Core . | . . . . . Reactor . | . . . . . Propulsion 3 | . 3 . . . Treads 2 | . 2 . . . Leg . | . . . . . Wheel 1 | . 1 . . . Hover . | . . . . . Flight . | . . . . . Utility 6 | . 3 . 3 . Device 3 | . 1 . 2 . Storage 3 | . 2 . 1 . Processor . | . . . . . Hackware . | . . . . . Protection . | . . . . . Artifact . | . . . . . Weapon 10 | . 5 . . 5 Energy Gun 3 | . 2 . . 1 Energy Cannon . | . . . . . Ballistic Gun 2 | . 2 . . . Ballistic Cannon 4 | . 1 . . 3 Launcher 1 | . . . . 1 Special Weapon . | . . . . . Impact Weapon . | . . . . . Slashing Weapon . | . . . . . Piercing Weapon . | . . . . . Special Melee Weapon . | . . . . . Unidentified Prototypes . | . . . . . Parts Lost 9 | . 1 . . 8 Power 2 | . 1 . . 1 Propulsion 2 | . . . . 2 Utility 1 | . . . . 1 Weapon 4 | . . . . 4 Highest Loss Streak 8 | . 1 . . 8 To Critical Strikes . | . . . . . Average Slot Usage (%) 99 | . 98 100 99 85 Engine 13 | . 13 14 14 14 Treads 26 | . 24 28 28 28 Wheel 1 | . 3 . . . Device 13 | . 13 14 13 14 Storage 14 | . 14 14 14 14 Energy Gun 21 | . 11 28 28 7 Ballistic Gun 5 | . 14 . . . Peak Build Rating 14 | . 11 12 14 13 Average Rating 11 | . 9 11 12 11 On Entrance 9 | 6 6 11 12 13 Naked Turns . | . . . . . Heaviest Build 51 | 13 51 50 50 51 Greatest Support 40 | 20 40 40 40 40 Greatest Overweight (x) 4 | . 4 1 1 1 Average Overweight (x) 1 | . 1 1 1 1 Largest Inventory Capacity 20 | . 20 20 20 20 Average Capacity 19 | . 19 20 20 20 Most Carried 20 | . 20 20 20 20 Average Carried 18 | . 16 19 19 19 Final Capacity 20 | 8 20 20 20 20 Final Carried 20 | 6 19 20 20 17 Class Distribution -------------------- 100% | Mutant Dominant Class ---------------- Mutant | -10/Materials Mutant | -10/Mines Mutant | -10/Exiles Mutant | -9/Mines Resources | -11 -10 -10 -10 -9 ----------- Run | Yrd Mat Min Exi Min Matter Collected 549 | 200 349 . . . Remotely . | . . . . . Salvage Created 454 | . 347 51 . 56 Parts 38 | . 33 5 . . Haulers Intercepted . | . . . . . Recyclers Shooed 1 | . 1 . . . Parts Field Recycled . | . . . . . Retrieved Matter . | . . . . . Parts Self-Destructed . | . . . . . Prevented . | . . . . . Kills | -11 -10 -10 -10 -9 ------- Run | Yrd Mat Min Exi Min Combat Hostiles Destroyed 23 | . 8 4 . 11 Guns 13 | . 8 4 . 1 AOE 10 | . . . . 10 Classes Destroyed 7 | . 6 . . 1 Worker 2 | . 2 . . . Tunneler 1 | . 1 . . . Operator 1 | . 1 . . . Watcher 2 | . 2 . . . Swarmer 7 | . 3 4 . . Grunt 5 | . 5 . . . Assembled 11 | . . . . 11 Best Kill Streak 11 | . 3 3 . 11 Combat Bots Only 11 | . 3 3 . 11 Max Kills in Single Turn 6 | . 2 2 . 6 Gunslinging 1 | . 1 . . . Exploded 6 | . . . . 6 Melee . | . . . . . Uniques/NPCs Destroyed . | . . . . . Combat | -11 -10 -10 -10 -9 -------- Run | Yrd Mat Min Exi Min Hostile Shots Fired 101 | . 56 16 . 29 Missed 26 | . 17 5 . 4 Damage Taken 1251 | . 413 81 . 757 Core 254 | . 53 8 . 193 Absorbed by Shields . | . . . . . Core Remaining (%) 100 | 100 . . . . Volleys Fired 58 | . 45 6 . 7 Largest 2 | . 2 2 . 2 Hottest 130 | . 130 130 . 100 Shots Fired 114 | . 90 12 . 12 Gun 103 | . 87 12 . 4 Cannon 6 | . 3 . . 3 Launcher 5 | . . . . 5 Special . | . . . . . Kinetic 80 | . 77 . . 3 Thermal 29 | . 13 12 . 4 Explosive 5 | . . . . 5 Electromagnetic . | . . . . . Robot Hit Streak 11 | . 11 4 . 2 Robot Miss Streak 8 | . 5 8 . 7 Penetration Max . | . . . . . Secondary Targets 1 | . 1 . . . Max Gunslinging Chain 1 | . 1 . . . Shots Hit Robots 72 | . 53 10 . 9 Core Hits 66 | . 25 10 . 31 Critical Kills 1 | . 1 . . . Critical Parts Destroyed 2 | . 2 . . . Critical Strikes 3 | . 3 . . . Destroy 3 | . 3 . . . Melee Attacks . | . . . . . Impact . | . . . . . Slashing . | . . . . . Piercing . | . . . . . Sneak Attacks . | . . . . . Combat Hostiles . | . . . . . Follow-up Attacks . | . . . . . Damage Inflicted 1749 | . 789 75 . 885 Guns 765 | . 628 74 . 63 Cannons 54 | . 39 . . 15 Explosions 920 | . 113 . . 807 Melee . | . . . . . Ramming 10 | . 9 1 . . Kinetic 598 | . 583 . . 15 Thermal 334 | . 197 74 . 63 Explosive 807 | . . . . 807 Electromagnetic . | . . . . . Impact . | . . . . . Slashing . | . . . . . Piercing . | . . . . . Highest Corruption . | . . . . . Average Corruption . | . . . . . Corruption Purged . | . . . . . Corruption Blocked . | . . . . . Overload Shots . | . . . . . Overflow Damage 76 | . 73 . . 3 Projectiles . | . . . . . Explosions 76 | . 73 . . 3 Melee . | . . . . . Knockbacks 1 | . 1 . . . Impact . | . . . . . Kinetic 1 | . 1 . . . Secondary . | . . . . . Self-Inflicted Damage . | . . . . . Shots . | . . . . . Rammed 3 | . 2 1 . . Targets Rammed 3 | . 2 1 . . Kicked . | . . . . . Crushed . | . . . . . Highest Temperature 276 | . 69 276 . 132 Average Temperature 83 | . 35 117 . 68 Received Heat Transfer 212 | . 132 . . 80 Effects 1 | . . 1 . . Energy Bleed 1 | . . 1 . . Siege Activations . | . . . . . Robots Corrupted . | . . . . . Combat Hostiles . | . . . . . Parts Fried . | . . . . . Impact Corruptions . | . . . . . Robots Melted . | . . . . . Combat Hostiles . | . . . . . Parts Melted 1 | . 1 . . . Heat Transferred 355 | . 185 95 . 75 Parts Sabotaged . | . . . . . Parts Stolen . | . . . . . Parts Stripped . | . . . . . Power Chain Reactions . | . . . . . Alert | -11 -10 -10 -10 -9 ------- Run | Yrd Mat Min Exi Min Peak Influence 187 | . 187 70 . 21 Initial . | . . . . . Average 37 | . 61 9 . 7 Maximum Alert Level . | . . . . . Low Security (%) 100 | . 100 100 . 100 Level 1 . | . . . . . Level 2 . | . . . . . Level 3 . | . . . . . Level 4 . | . . . . . Level 5 . | . . . . . High Security . | . . . . . Max Security . | . . . . . Squads Dispatched 2 | . 2 . . . Investigation 1 | . 1 . . . Extermination . | . . . . . Reinforcement 1 | . 1 . . . Assault . | . . . . . Garrison . | . . . . . Intercept . | . . . . . Searches Triggered . | . . . . . Construction Impeded . | . . . . . Haulers Reinforced . | . . . . . Active Scanning Responses . | . . . . . Cargo Convoy Interrupts . | . . . . . Stealth | -11 -10 -10 -10 -9 --------- Run | Yrd Mat Min Exi Min Distress Signals 2 | . 2 . . . Communications Jammed . | . . . . . Distress Signals . | . . . . . Times Spotted 45 | . 19 4 . 22 Peak Tracking Total 20 | . 5 3 . 20 Tactical Retreats . | . . . . . Traps | -11 -10 -10 -10 -9 ------- Run | Yrd Mat Min Exi Min Traps Triggered . | . . . . . Indirectly . | . . . . . Trap Hack Attempts . | . . . . . Triggered . | . . . . . Disarmed . | . . . . . Reprogrammed . | . . . . . Reused . | . . . . . Traps Extracted . | . . . . . Installed . | . . . . . Triggered . | . . . . . Most Traps Carried 3 | . . 3 3 3 Objects Rigged 2 | . 2 . . . Exploded 1 | . 1 . . . Machines | -11 -10 -10 -10 -9 ---------- Run | Yrd Mat Min Exi Min Machines Disabled 4 | . 4 . . . Max in Single Turn 4 | . 4 . . . Machines Repaired . | . . . . . Machines Dismantled . | . . . . . Machines Sabotaged . | . . . . . Overloaded Fab Kills . | . . . . . Hacking | -11 -10 -10 -10 -9 --------- Run | Yrd Mat Min Exi Min Machines Accessed 11 | . 8 1 2 . Terminals 7 | . 6 1 . . Fabricators . | . . . . . Repair Stations . | . . . . . Recycling Units 2 | . 2 . . . Scanalyzers . | . . . . . Garrison Access . | . . . . . Total Hacks 28 | . 21 2 5 . Successful 16 | . 9 2 5 . Failed 12 | . 12 . . . Catastrophic . | . . . . . Database Lockouts . | . . . . . Manual 21 | . 18 2 1 . Terminals 19 | . 17 2 . . Fabricators . | . . . . . Repair Stations . | . . . . . Recycling Units 4 | . 4 . . . Scanalyzers . | . . . . . Garrison Access . | . . . . . Terminal Hacks 5 | . . . 5 . Record 4 | . . . 4 . Derelict Proto ID Bank 1 | . . . 1 . Fabricator Hacks . | . . . . . Repair Station Hacks . | . . . . . Recycling Unit Hacks 2 | . 2 . . . Retrieve Components 2 | . 2 . . . Scanalyzer . | . . . . . Garrison Access Hacks . | . . . . . Unauthorized Hacks 9 | . 7 2 . . Terminals 8 | . 6 2 . . Botnet 4 | . 3 1 . . Detonate 1 | . 1 . . . Operators 1 | . 1 . . . Skim 2 | . 1 1 . . Fabricators . | . . . . . Repair Stations . | . . . . . Recycling Units 1 | . 1 . . . Tunnel 1 | . 1 . . . Scanalyzers . | . . . . . Garrison Access . | . . . . . Data Cores Recovered . | . . . . . Used . | . . . . . Hacking Detections 8 | . 7 1 . . Full Trace Events . | . . . . . Feedback Events . | . . . . . Feedback Blocked . | . . . . . Robot Schematics Acquired . | . . . . . Robots Built . | . . . . . Authchips . | . . . . . Time . | . . . . . Total Robot Build Rating . | . . . . . Part Schematics Acquired . | . . . . . Parts Built . | . . . . . Authchips . | . . . . . Time . | . . . . . Total Part Build Rating . | . . . . . Parts Repaired . | . . . . . Time . | . . . . . Parts Recycled . | . . . . . Recycled Matter . | . . . . . Retrieved Matter . | . . . . . Retrieved Components 13 | . 13 . . . Parts Scanalyzed . | . . . . . Part Schematics Acquired . | . . . . . Parts Damaged . | . . . . . Bothacking | -11 -10 -10 -10 -9 ------------ Run | Yrd Mat Min Exi Min Used RIF Installer . | . . . . . Robots Hacked . | . . . . . Non-combat . | . . . . . Combat . | . . . . . Robot Hacks Applied . | . . . . . Relay Couplers Released . | . . . . . Fabnet Peak Effective % . | . . . . . Robots Rewired . | . . . . . Allies Hacked . | . . . . . Hacks Repelled . | . . . . . Allies | -11 -10 -10 -10 -9 -------- Run | Yrd Mat Min Exi Min Total Allies . | . . . . . Largest Group . | . . . . . Highest-Rated Group . | . . . . . Highest-Rated Ally . | . . . . . Total Orders . | . . . . . Ally Attacks . | . . . . . Total Damage . | . . . . . Kills . | . . . . . Allies Corrupted . | . . . . . Allies Melted . | . . . . . Intel | -11 -10 -10 -10 -9 ------- Run | Yrd Mat Min Exi Min Robot Analysis Total . | . . . . . Derelict Logs Recovered 1 | . . 1 . . Drone Launches . | . . . . . Drone Recoveries . | . . . . . Exploration | -11 -10 -10 -10 -9 ------------- Run | Yrd Mat Min Exi Min Turns Passed 4898 | . 1772 1547 1550 29 Spaces Moved 1978 | 1 723 613 639 2 Core . | . . . . . Treads 1742 | . 488 613 639 2 Legs 1 | 1 . . . . Wheels 235 | . 235 . . . Hover . | . . . . . Flight . | . . . . . Fastest Speed 95 | 120 95 240 240 240 Average Speed 226 | 120 202 240 240 240 Slowest Speed 240 | 120 240 240 240 240 Overloaded Moves . | . . . . . Propulsion Burnouts . | . . . . . Robots Hopped . | . . . . . Cave-ins Triggered . | . . . . . Exploration Rate (%) 47 | 2 67 91 70 6 Regions Visited 4 Branch Regions 3 Pre-discovered Areas 2 | . 1 . 1 . Known Exits Taken . | . . . . . Unknown Exits Taken 4 | 1 1 1 1 . Scrap Searched 1 | . . 1 . . Spaces Dug . | . . . . . Terrain Destroyed 74 | . 42 . . 32 Melee . | . . . . . Projectile . | . . . . . AOE 74 | . 42 . . 32 Terrain Rammed . | . . . . . Walls Destroyed . | . . . . . Machines Disabled . | . . . . . Actions | -11 -10 -10 -10 -9 --------- Run | Yrd Mat Min Exi Min Total 2300 | . 947 681 658 14 Wait 171 | . 117 49 5 . Move 1974 | . 722 612 638 2 Hop . | . . . . . Pick Up 38 | . 27 7 4 . Fast Attach 8 | . 6 . 2 . Attach 6 | . 3 . . 3 Detach 2 | . 2 . . . Swap 7 | . 3 . 2 2 Drop 33 | . 20 6 7 . Fire 58 | . 45 6 . 7 Melee . | . . . . . Ram . | . . . . . Kick . | . . . . . Crush 3 | . 2 1 . . Escape Stasis . | . . . . . Rewire . | . . . . . Trap . | . . . . . Miscellaneous . | . . . . . Route ------- -11/Scrapyard -10/Materials (discovered 4 exits: [*Mat x2] / *Min / [*Sub]) -10/Mines (discovered 3 exits: [*Mat x2] / *Exi) -10/Exiles -9/Mines History --------- Turn | Location | Event 1 | -11/Scrapyard | Discovered new exit (range 0) 1 | -11/Scrapyard | Entered Materials 318 | -10/Materials | Build established: Mutant 501 | -10/Materials | Derelicts attacked the area 614 | -10/Materials | Discovered new exit (range 14) 1181 | -10/Materials | Discovered new exit (range 11) 1203 | -10/Materials | Discovered new exit (range 7) 1464 | -10/Materials | Discovered new exit (range 9) 1773 | -10/Materials | Entered Mines 1774 | -10/Mines | Met a Derelict bent on vengeance 1910 | -10/Mines | Found a hidden stash of uninstalled traps 2306 | -10/Mines | A weapon hastily lodged in a ceiling crevice suddenly fell to the ground 2724 | -10/Mines | Discovered new exit (range 7) 3034 | -10/Mines | Discovered new exit (range 8) 3106 | -10/Mines | Deemed a non-threat by the Exiles lab entrance 3106 | -10/Mines | Discovered new exit (range 5) 3187 | -10/Mines | Received a Rocket Launcher from a helpful Derelict 3320 | -10/Mines | Entered Exiles 3385 | -10/Exiles | Met 8R-AWN 3426 | -10/Exiles | Met EX-HEX 3560 | -10/Exiles | Met EX-DEC 3697 | -10/Exiles | Learned location of Zion (-6) 3740 | -10/Exiles | Met EX-BIN 3778 | -10/Exiles | Aligned with FarCom system 3781 | -10/Exiles | Given EX-Vault access code 3836 | -10/Exiles | Opened EX-Vault 3848 | -10/Exiles | Found Superbattery 3897 | -10/Exiles | Warned to stay clear of 0b10 Research branches 4065 | -10/Exiles | Discovered new exit (range 10) 4870 | -10/Exiles | Left Exiles lab with Superbattery 4870 | -10/Exiles | Entered Mines 4871 | -9/Mines | Assembled infested the area 4898 | -9/Mines | Core integrity fell below 50% 4899 | -9/Mines | Destroyed by D-53 Grenadier with Mini Grenade Launcher Last Messages --------------- 04876_ as-99550 destroyed. 04877_ as-18227 destroyed. 04877_ as-80701 destroyed. 04877_ Destroyed Asb. F-torch. 04877_ as-98135 destroyed. 04877_ as-20982 destroyed. 04882_ as-07361 destroyed. 04882_ as-94067 destroyed. 04883_ as-91659 destroyed. 04885_ The unstable cave ceiling collapses. 04886_ Spread Laser destroyed. 04888_ The unstable cave ceiling collapses. 04889_ Rocket Launcher destroyed. 04890_ Lgt. Treads destroyed. 04891_ The unstable cave ceiling collapses. 04895_ Lgt. Ion Engine destroyed. 04895_ Lgt. Cannon destroyed. 04897_ Seismic Detector destroyed. 04898_ The unstable cave ceiling collapses. 04899_ Lgt. Cannon destroyed. Map ----- +----------------------------------------------------+ | ?????????????????????????????????????????????????? | | ?????????????????????????????????????????????????? | | ?????????????????????????????????????????????????? | | ?????????????????????????????????????????????????? | | ?????????????????????????????????????????????????? | | ?????????????????????????????????????????????????? | | ?????????????????????????????????????????????????? | | ?????????????????????????????????????????????????? | | ?????????????????????????????????????????????????? | | ?????????????????????????????????????????????????? | | ?????????????????????????????????????????????????? | | ?????????????????????????????????????????????????? | | ?????????????????????????????????????????????????? | | ?????????????????????????????????????????????????? | | ?????????????????????????????????????????????????? | | ?????????????????????????????????????????????????? | | ?????????????#???????????????????????????????????? | | ??????????? ?# ?#?????#####??????????????????????? | | ??????????? # ???## ##?????????????????????? | | ??????????? ?## #?????????????????????? | | ?????????? u # ##????????????????????? | | ?????????? < ##???????????????????? | | ??????????# ##??????????????????? | | ?????????? d #??????????????????? | | ?????????? d #??????????????????? | | ??????????# # @ #??????????????????? | | ????????????# #??????????????????? | | ?????????????## ### #??????????????????? | | ????????????????????# # #??????????????????? | | ????????????????????## ##??????????????????? | | ?????????????????????## #####???????????????????? | | ???????????????????????##????????????????????????? | | | | | | | | | | | | | | | | | | | | | | | | | | | | | | | | | | | | | +----------------------------------------------------+ Best States ------------- Heat Dissipation 25 Coolant Potential 50 Energy Generation 10 Energy Capacity 250 Matter Stores 300 Matter Capacity 300 Sight Range 16 Terrain Scan Density 10 Evasion (%) 41 Recoil Reduction 2 Item Schematics ----------------- None Robot Schematics ------------------ None Fabricated ------------ Nothing Alien Tech Used ----------------- None Achievements -------------- None Challenges ------------ None Game ------ Seed HeartMachineArray Manual? 0 Play Time 00:29:20 Cumulative 124.4 hours Start 2024.11.21 @ 07:41:10 End 2024.11.21 @ 11:00:54 Sessions 1 Manual Loads 0 Difficulty Rogue Special Mode None Game No. 231 Rogue 231 Adventurer 0 Explorer 0 Win Type - Total 0 Types 0/0/0/0/0/0/0/0/0 Lore% 43 Gallery% 40 Achievement% 36 Wizard Run 0 Options --------- Layout 0 ASCII 0 Keyboard 0 Movement Mouse Keybinds 0 Fullscreen 1 Font 24/Smallcaps Map View 91x25 Zoom Use 96% Tactical HUD 1 Map Filters NONE Filters NONE Steam 1 RUN: 4cef9bfc-0bfc-44f1-827b-946f07ce294f